Cogmind - Beta 13 @@@ ROGUE MODE // 2024.06.16 @ 23:01:48 Player: CONM Result: Destroyed by Y-45 Defender with Heavy Assault Rifle Performance ------------- Evolutions (0) 0 Regions Visited (2) 400 Robots Destroyed (14) 70 Value Destroyed (334) 334 Prototype IDs (0) 0 Alien Tech Used (0) 0 Bonus (0) 0 TOTAL SCORE: 804 Bonus ------- None Cogmind --------- Core Integrity 0/250 Matter 152/300 Energy 100/100 System Corruption 0% Temperature Cool (9) Movement Treading (320) Ox2 Location -10/Mines Parts ------- > --- POWER (1) -------- (None) > --- PROPULSION (2) --- Light Treads Light Treads > --- UTILITY (2) ------ Huge Storage Unit > --- WEAPON (2) ------- Small Laser > --- INVENTORY (25) --- Ion Engine Ion Engine Light Ion Engine Light Treads Light Treads Heat Sink Improved Heat Sink Improved Terrain Scanner Improved Terrain Scanner Seismic Detector Light Armor Plating Light Armor Plating Tractor Beam Datajack Peak State ------------ > --- POWER ------------ Ion Engine > --- PROPULSION ------- Compact Wheel Compact Wheel > --- UTILITY ---------- Huge Storage Unit Light Armor Plating > --- WEAPON ----------- Particle Gun Light Assault Rifle > --- INVENTORY -------- Ion Engine Ion Engine Light Ion Engine Light Treads Light Treads Light Treads Light Treads Improved Heat Sink Improved Terrain Scanner Improved Terrain Scanner Seismic Detector Light Armor Plating Light Armor Plating Tractor Beam Small Laser Datajack [Rating: 10] Favorites ----------- Power Ion Engine Engine Ion Engine Propulsion Wheel Treads Light Treads Wheel Wheel Utility Huge Storage Unit Device Seismic Detector Storage Huge Storage Unit Protection Light Armor Plating Weapon Light Assault Rifle Energy Gun Particle Gun Ballistic Gun Light Assault Rifle Build | -11 -10 -10 ------- Run | Yrd Mat Min Slots Evolved . | . . . Power . | . . . Propulsion . | . . . Utility . | . . . Weapon . | . . . Parts Attached 23 | 9 11 3 Power 4 | 2 2 . Engine 4 | 2 2 . Core . | . . . Reactor . | . . . Propulsion 10 | 2 6 2 Treads 6 | 2 2 2 Leg . | . . . Wheel 4 | . 4 . Hover . | . . . Flight . | . . . Utility 4 | 2 2 . Device 1 | 1 . . Storage 2 | 1 1 . Processor . | . . . Hackware . | . . . Protection 1 | . 1 . Artifact . | . . . Weapon 5 | 3 1 1 Energy Gun 3 | 1 1 1 Energy Cannon . | . . . Ballistic Gun 2 | 2 . . Ballistic Cannon . | . . . Launcher . | . . . Special Weapon . | . . . Impact Weapon . | . . . Slashing Weapon . | . . . Piercing Weapon . | . . . Special Melee Weapon . | . . . Unidentified Prototypes . | . . . Parts Lost 9 | . 4 5 Power 1 | . . 1 Propulsion 4 | . 2 2 Utility 1 | . 1 . Weapon 3 | . 1 2 Highest Loss Streak 3 | . 2 3 To Critical Strikes . | . . . Average Slot Usage (%) 91 | . 97 55 Engine 12 | . 14 2 Treads 3 | . 2 12 Wheel 22 | . 25 9 Device 7 | . 8 . Storage 14 | . 14 14 Protection 3 | . 3 . Energy Gun 2 | . 1 9 Ballistic Gun 23 | . 26 6 Naked Turns . | . . . Heaviest Build 91 | 14 91 89 Greatest Support 40 | 40 40 40 Greatest Overweight (x) 9 | . 9 5 Average Overweight (x) 2 | . 3 3 Largest Inventory Capacity 25 | 8 25 25 Average Capacity 21 | 7 24 25 Most Carried 17 | 8 17 17 Average Carried 11 | 5 12 15 Final Capacity 25 | 8 25 25 Final Carried 17 | 8 17 14 Class Distribution -------------------- 79% | Mutant 20% | Scavenger-Mutant Dominant Class ---------------- Mutant | -10/Materials Mutant | -10/Mines Resources | -11 -10 -10 ----------- Run | Yrd Mat Min Matter Collected 373 | 130 220 23 Remotely . | . . . Salvage Created 484 | 84 377 23 Parts 38 | 13 23 2 Haulers Intercepted . | . . . Recyclers Shooed . | . . . Parts Field Recycled . | . . . Retrieved Matter . | . . . Parts Self-Destructed . | . . . Prevented . | . . . Kills | -11 -10 -10 ------- Run | Yrd Mat Min Combat Hostiles Destroyed 8 | . 8 . Guns 8 | . 8 . Classes Destroyed 3 | 1 2 . Worker 1 | . 1 . Tunneler 5 | 4 . 1 Grunt 8 | . 8 . Best Kill Streak 2 | 1 2 1 Combat Bots Only 2 | . 2 . Max Kills in Single Turn 1 | 1 1 1 Gunslinging . | . . . Exploded . | . . . Melee . | . . . Uniques/NPCs Destroyed . | . . . Combat | -11 -10 -10 -------- Run | Yrd Mat Min Hostile Shots Fired 109 | . 45 64 Missed 21 | . 3 18 Damage Taken 1195 | . 523 672 Core 262 | . 40 222 Absorbed by Shields . | . . . Core Remaining (%) 100 | 100 . . Volleys Fired 42 | 8 30 4 Largest 2 | 2 2 1 Hottest 85 | 40 85 40 Shots Fired 80 | 16 60 4 Gun 80 | 16 60 4 Cannon . | . . . Launcher . | . . . Special . | . . . Kinetic 73 | 16 57 . Thermal 7 | . 3 4 Explosive . | . . . Electromagnetic . | . . . Robot Hit Streak 10 | 5 10 4 Robot Miss Streak 2 | 1 2 1 Penetration Max . | . . . Secondary Targets 1 | . 1 . Max Gunslinging Chain 1 | . 1 . Shots Hit Robots 52 | 9 40 3 Core Hits 27 | 5 21 1 Critical Kills . | . . . Critical Parts Destroyed . | . . . Critical Strikes . | . . . Melee Attacks . | . . . Impact . | . . . Slashing . | . . . Piercing . | . . . Sneak Attacks . | . . . Combat Hostiles . | . . . Follow-up Attacks . | . . . Damage Inflicted 591 | 100 452 39 Guns 585 | 100 452 33 Cannons . | . . . Explosions . | . . . Melee . | . . . Ramming 6 | . . 6 Kinetic 517 | 100 417 . Thermal 68 | . 35 33 Explosive . | . . . Electromagnetic . | . . . Impact . | . . . Slashing . | . . . Piercing . | . . . Highest Corruption . | . . . Average Corruption . | . . . Corruption Purged . | . . . Corruption Blocked . | . . . Overload Shots . | . . . Overflow Damage . | . . . Projectiles . | . . . Explosions . | . . . Melee . | . . . Knockbacks . | . . . Impact . | . . . Kinetic . | . . . Secondary . | . . . Self-Inflicted Damage . | . . . Shots . | . . . Rammed 2 | . . 2 Targets Rammed 2 | . . 2 Kicked . | . . . Crushed . | . . . Highest Temperature 119 | . 119 4 Average Temperature 23 | . 23 4 Received Heat Transfer 489 | . 300 189 Siege Activations . | . . . Robots Corrupted . | . . . Combat Hostiles . | . . . Parts Fried . | . . . Impact Corruptions . | . . . Robots Melted . | . . . Combat Hostiles . | . . . Parts Melted . | . . . Heat Transferred 149 | . 74 75 Parts Sabotaged . | . . . Parts Stolen . | . . . Parts Stripped . | . . . Power Chain Reactions . | . . . Alert | -11 -10 -10 ------- Run | Yrd Mat Min Peak Influence 175 | 20 175 82 Initial 67 | . 13 67 Average 64 | 9 81 50 Maximum Alert Level . | . . . Low Security (%) 100 | 100 100 100 Level 1 . | . . . Level 2 . | . . . Level 3 . | . . . Level 4 . | . . . Level 5 . | . . . High Security . | . . . Max Security . | . . . Squads Dispatched 2 | . 2 . Investigation . | . . . Extermination . | . . . Reinforcement 2 | . 2 . Assault . | . . . Garrison . | . . . Intercept . | . . . Searches Triggered . | . . . Construction Impeded . | . . . Haulers Reinforced . | . . . Active Scanning Responses . | . . . Cargo Convoy Interrupts . | . . . Stealth | -11 -10 -10 --------- Run | Yrd Mat Min Distress Signals 1 | . 1 . Communications Jammed . | . . . Distress Signals . | . . . Times Spotted 20 | . 18 2 Peak Tracking Total 4 | . 4 2 Tactical Retreats . | . . . Traps | -11 -10 -10 ------- Run | Yrd Mat Min Traps Triggered . | . . . Indirectly . | . . . Trap Hack Attempts . | . . . Triggered . | . . . Disarmed . | . . . Reprogrammed . | . . . Reused . | . . . Traps Extracted . | . . . Installed . | . . . Triggered . | . . . Machines | -11 -10 -10 ---------- Run | Yrd Mat Min Machines Disabled . | . . . Max in Single Turn . | . . . Machines Repaired . | . . . Machines Dismantled . | . . . Machines Sabotaged . | . . . Overloaded Fab Kills . | . . . Hacking | -11 -10 -10 --------- Run | Yrd Mat Min Machines Accessed 5 | . 5 . Terminals 4 | . 4 . Fabricators . | . . . Repair Stations . | . . . Recycling Units 1 | . 1 . Scanalyzers . | . . . Garrison Access . | . . . Total Hacks 15 | . 15 . Successful 6 | . 6 . Failed 9 | . 9 . Catastrophic 5 | . 5 . Database Lockouts . | . . . Manual 8 | . 8 . Terminals 14 | . 14 . Fabricators . | . . . Repair Stations . | . . . Recycling Units 1 | . 1 . Scanalyzers . | . . . Garrison Access . | . . . Terminal Hacks 5 | . 5 . Robot Analysis 1 | . 1 . Terminal Index 1 | . 1 . Alert Level 1 | . 1 . Reinforcement Status 1 | . 1 . Zone Layout 1 | . 1 . Fabricator Hacks . | . . . Repair Station Hacks . | . . . Recycling Unit Hacks 1 | . 1 . Report Inventory 1 | . 1 . Scanalyzer . | . . . Garrison Access Hacks . | . . . Unauthorized Hacks . | . . . Terminals . | . . . Fabricators . | . . . Repair Stations . | . . . Recycling Units . | . . . Scanalyzers . | . . . Garrison Access . | . . . Data Cores Recovered . | . . . Used . | . . . Hacking Detections 4 | . 4 . Full Trace Events . | . . . Feedback Events . | . . . Feedback Blocked . | . . . Robot Schematics Acquired . | . . . Robots Built . | . . . Authchips . | . . . Time . | . . . Total Robot Build Rating . | . . . Part Schematics Acquired . | . . . Parts Built . | . . . Authchips . | . . . Time . | . . . Total Part Build Rating . | . . . Parts Repaired . | . . . Time . | . . . Parts Recycled . | . . . Recycled Matter . | . . . Retrieved Matter . | . . . Retrieved Components . | . . . Parts Scanalyzed . | . . . Part Schematics Acquired . | . . . Parts Damaged . | . . . Bothacking | -11 -10 -10 ------------ Run | Yrd Mat Min Used RIF Installer . | . . . Robots Hacked . | . . . Non-combat . | . . . Combat . | . . . Robot Hacks Applied . | . . . Relay Couplers Released . | . . . Fabnet Peak Effective % . | . . . Robots Rewired . | . . . Allies Hacked . | . . . Hacks Repelled . | . . . Allies | -11 -10 -10 -------- Run | Yrd Mat Min Total Allies . | . . . Largest Group . | . . . Highest-Rated Group . | . . . Highest-Rated Ally . | . . . Total Orders . | . . . Ally Attacks . | . . . Total Damage . | . . . Kills . | . . . Allies Corrupted . | . . . Allies Melted . | . . . Intel | -11 -10 -10 ------- Run | Yrd Mat Min Robot Analysis Total 1 | . 1 . Derelict Logs Recovered . | . . . Drone Launches . | . . . Drone Recoveries . | . . . Exploration | -11 -10 -10 ------------- Run | Yrd Mat Min Turns Passed 1071 | 196 751 124 Spaces Moved 592 | 101 433 58 Core 8 | 8 . . Treads 129 | 93 20 16 Legs . | . . . Wheels 455 | . 413 42 Hover . | . . . Flight . | . . . Fastest Speed 50 | 50 130 130 Average Speed 147 | 151 141 184 Slowest Speed 320 | 160 320 320 Overloaded Moves . | . . . Propulsion Burnouts . | . . . Robots Hopped . | . . . Cave-ins Triggered . | . . . Exploration Rate (%) 29 | 7 63 19 Regions Visited 2 Branch Regions 1 Pre-discovered Areas . | . . . Known Exits Taken . | . . . Unknown Exits Taken 2 | 1 1 . Scrap Searched . | . . . Spaces Dug . | . . . Terrain Destroyed . | . . . Melee . | . . . Projectile . | . . . AOE . | . . . Terrain Rammed . | . . . Walls Destroyed . | . . . Machines Disabled . | . . . Actions | -11 -10 -10 --------- Run | Yrd Mat Min Total 707 | 125 515 67 Wait 32 | 1 31 . Move 590 | 100 432 58 Hop . | . . . Pick Up 17 | 7 10 . Fast Attach 7 | 7 . . Attach 6 | . 3 3 Detach . | . . . Swap 10 | 2 8 . Drop 1 | . 1 . Fire 42 | 8 30 4 Melee . | . . . Ram . | . . . Kick . | . . . Crush 2 | . . 2 Escape Stasis . | . . . Rewire . | . . . Trap . | . . . Miscellaneous . | . . . Route ------- -11/Scrapyard -10/Materials (discovered 2 exits: [*Mat] / [*Min]) -10/Mines History --------- Turn | Location | Event 5 | -11/Scrapyard | Discovered new exit (range 15) 197 | -11/Scrapyard | Entered Materials 304 | -10/Materials | Build established: Mutant 411 | -10/Materials | Discovered new exit (range 16) 928 | -10/Materials | Discovered new exit (range 16) 948 | -10/Materials | Entered Mines 1011 | -10/Mines | Core integrity fell below 50% 1045 | -10/Mines | Lost 3 parts (1n2w) 1064 | -10/Mines | Core integrity fell below 20% 1072 | -10/Mines | Destroyed by Y-45 Defender with Heavy Assault Rifle Last Messages --------------- 00881_ G-34 Mercenary destroyed. 00883_ Acquired 45 matter. 00886_ Acquired Heat Sink. 00887_ K-01 Serf collects debris. 00927_ K-01 Serf cleans the Purification Channel. 00928_ EXIT=FOUND 00930_ K-01 Serf cleans the Purification Channel. LOCATION=UNKNOWN GOAL=ESCAPE 00967_ Com. Wheel destroyed. 00968_ Ion Engine destroyed. 01004_ Lgt. Assault Rifle destroyed. 01011_ Particle Gun destroyed. 01014_ Com. Wheel destroyed. 01028_ T-07 Excavator is excavating. 01054_ T-07 Excavator destroyed. 01063_ Slammed into Y-45 Defender. 01070_ Acquired 23 matter. Map ----- +----------------------------------------------------+ | | | | | | | | | | | | | | | | | | | | | ?????????????????????????????????????????????????? | | ????????????????????????????????????????????????## | | ???????????????????????????????????????????????##" | | ???????????????????????????????????????????????#!] | | ???????????????????????????????????????????????#!! | | ???????????????????????????????????????###??????# | | ?????????????????????????????????????## #?????### | | ?????????????????????????????????????# #?????# | | ?????????????????????????????????????# #?????# | | ?????????????????????????????????????# #?????# | | ?????????????????????????????????????# #?????## | | ?????????????????????#####???????###?# ##?????# | | ?????????????????????# ##?????## ### ##????# | | ?????????????????????# Y ##???## ## ##???# | | ?????????????????????# Y #??## ## ##??## | | ?????????????????????####@ #?## ### """ #???# | | ????????????????????????#= ### ## """ #???? | | ????????????????????????# """ #???? | | ????????????????????????# #### ##??? | | ????????????????????????# #??## #### | | ????????????????????????# #???## | | ????????????????????????# #????### | | ????????????????????????# #??????### #### | | ????????????????????????# #????????## #??## | | ????????????????????????# ?????????# #???# # | | ????????????????????????# ?????????# #???# ## | | ????????????????????????# ?????????# #???## ##? | | ????????????????????????# ?????????# #????####?? | | ???????????????????????? ?????????# #?????????? | | ???????????????????????? ?????????# #?????????? | | ???????????????????????? ?????????? ??????????? | | ???????????????????????? ?????????? ??????????? | | ?????????????????????????????????????? ??????????? | | ?????????????????????????????????????????????????? | | ?????????????????????????????????????????????????? | | ?????????????????????????????????????????????????? | | ?????????????????????????????????????????????????? | | ?????????????????????????????????????????????????? | | ?????????????????????????????????????????????????? | | ?????????????????????????????????????????????????? | +----------------------------------------------------+ Best States ------------- Heat Dissipation 25 Energy Generation 10 Energy Capacity 250 Matter Stores 158 Matter Capacity 300 Sight Range 16 Terrain Scan Density 10 Armor Coverage 150 Evasion (%) 40 Recoil Reduction 2 Item Schematics ----------------- None Robot Schematics ------------------ None Fabricated ------------ Nothing Alien Tech Used ----------------- None Achievements -------------- None Challenges ------------ None Game ------ Seed HybridDimensionalShield Manual? 0 Play Time 00:16:26 Cumulative 31.0 hours Start 2024.06.16 @ 22:36:25 End 2024.06.16 @ 23:01:48 Sessions 1 Manual Loads 0 Difficulty Rogue Special Mode None Game No. 53 Rogue 53 Adventurer 0 Explorer 0 Win Type - Total 0 Types 0/0/0/0/0/0/0/0/0 Lore% 22 Gallery% 23 Achievement% 26 Wizard Run 0 Options --------- Layout 1 ASCII 0 Keyboard 0 Movement Arrows Keybinds 0 Fullscreen 1 Font 24/Crisp Map View 50x40 Zoom Use 0% Tactical HUD 1 Map Filters NONE Filters NONE Steam 1 RUN: fd0255f0-eee2-49c9-9e00-671becfb7b17